bitfinex/quotes_SOLUSD_20260208
["timestamp","ask_amount","ask_price","bid_price","bid_amount"]
[1770571498569,0.49999999,86.636,86.6,14.26506155]
[1770571498858,11.54241259,86.637,86.59,14.26506155]
[1770571498859,0.49999999,86.629,86.59,14.26506155]
[1770571499066,0.49999999,86.629,86.6,14.26506155]
[1770571499252,0.49999999,86.629,86.59,14.26506155]
[1770571499461,40.39844407,86.637,86.581,40.42457351]
[1770571499462,0.49999999,86.609,86.581,11.54987814]
[1770571499849,0.49999999,86.609,86.58,14.26506155]
[1770571500236,0.49999999,86.607,86.574,11.55077469]
[1770571500437,0.49999999,86.607,86.57,14.26506155]
[1770571500747,0.49999999,86.599,86.567,11.55164508]
[1770571501050,0.49999999,86.599,86.572,11.55101003]
[1770571501250,0.49999999,86.599,86.57,14.26506155]
[1770571501451,1.23699997,86.623,86.581,11.54987814]
[1770571501653,1.23699997,86.623,86.59,14.26506155]
[1770571501835,1.23699997,86.623,86.591,11.5485443]
[1770571502036,0.49999999,86.622,86.591,11.5485443]
[1770571504860,0.49999999,86.622,86.6,14.27980499]
[1770571505059,0.73699998,86.623,86.6,14.27980499]
[1770571505767,0.73699998,86.623,86.61,14.27980499]
[1770571506456,0.73699998,86.623,86.608,11.54616523]
[1770571508061,0.73699998,86.623,86.603,11.54693927]
[1770571508544,0.23699998,86.623,86.603,11.54693927]
[1770571511063,0.49999999,86.622,86.597,11.54768415]
[1770571511646,0.49999999,86.622,86.59,14.27980499]
[1770571511842,0.49999999,86.62,86.59,25.82847928]
[1770571513267,0.23699998,86.623,86.59,25.82847928]
[1770571513268,0.49999999,86.643,86.61,14.27980499]
[1770571513469,0.49999999,86.643,86.62,14.27980499]
[1770571513762,0.49999999,86.639,86.6,14.27980499]
[1770571513949,0.49999999,86.639,86.61,14.27980499]
[1770571515270,0.49999999,86.639,86.611,11.54587754]
[1770571515770,0.49999999,86.637,86.61,14.27980499]
[1770571516847,0.49999999,86.637,86.61,25.82574782]
[1770571517049,0.49999999,86.646,86.62,14.27980499]
[1770571518481,0.49999999,86.644,86.61,14.27980499]
[1770571519872,0.49999999,86.642,86.61,14.27980499]
[1770571520875,0.49999999,86.642,86.61,5.32940303]
[1770571521055,0.49999999,86.64,86.61,5.32940303]
[1770571521368,0.49999999,86.64,86.611,11.54587754]
[1770571522252,0.49999999,86.64,86.62,5.32940303]
[1770571522960,0.49999999,86.64,86.611,11.54587754]
[1770571523175,0.49999999,86.645,86.611,11.54587754]
[1770571524372,0.49999999,86.654,86.62,5.32940303]
[1770571525367,0.49999999,86.654,86.63,5.32940303]
[1770571525572,0.49999999,86.654,86.626,11.54381535]
[1770571526074,0.49999999,86.652,86.62,5.32940303]
[1770571527953,11.54054771,86.651,86.62,5.32940303]
[1770571528157,0.49999999,86.65,86.62,5.32940303]
[1770571529261,0.49999999,86.648,86.62,5.32940303]
[1770571529678,0.49999999,86.648,86.616,11.54509346]
[1770571530075,0.49999999,86.648,86.62,5.32940303]
[1770571530281,0.49999999,86.648,86.62,16.87401551]
[1770571531477,0.49999999,86.648,86.62,5.32940303]
[1770571531776,0.49999999,86.646,86.62,5.32940303]
[1770571532576,0.49999999,86.644,86.601,40.41522231]
[1770571532782,0.49999999,86.644,86.61,5.32940303]
[1770571533286,0.49999999,86.644,86.62,5.32940303]
[1770571533874,0.72100001,86.655,86.63,5.32940303]
[1770571534080,5.52940303,86.72,86.601,98.15127616]
[1770571534081,0.49999999,86.676,86.65,5.32940303]
[1770571534265,11.53735217,86.675,86.65,5.32940303]
[1770571534883,0.49999999,86.688,86.66,5.32940303]
[1770571535180,0.49999999,86.688,86.65,11.54061904]
[1770571535181,0.49999999,86.688,86.65,16.87002207]
[1770571536063,0.49999999,86.659,86.62,16.87397195]
[1770571536261,0.49999999,86.649,86.62,11.54456892]
[1770571536465,0.49999999,86.639,86.6,5.32940303]
[1770571536665,0.49999999,86.629,86.591,28.87132633]
[1770571536967,0.49999999,86.629,86.591,11.5485443]
[1770571536968,0.49999999,86.628,86.591,11.5485443]
[1770571538873,0.49999999,86.626,86.58,14.28244732]
[1770571539888,11.54374502,86.627,86.58,14.28244732]
[1770571539889,0.49999999,86.619,86.58,14.28244732]
[1770571541591,0.49999999,86.619,86.581,11.54987814]
[1770571541794,11.54485733,86.619,86.59,14.28244732]
[1770571541978,0.49999999,86.618,86.581,11.54987814]
[1770571542576,0.49999999,86.618,86.59,14.28244732]
[1770571542776,0.49999999,86.609,86.581,11.54987814]
[1770571543085,0.49999999,86.609,86.477,46.25456707]
[1770571543086,0.49999999,86.609,86.56,14.28244732]
[1770571543293,0.49999999,86.589,86.55,14.28244732]
[1770571543695,0.49999999,86.589,86.551,11.55388152]
[1770571545399,0.49999999,86.587,86.551,40.43858533]
[1770571545592,0.49999999,86.599,86.56,14.28244732]
[1770571547794,0.49999999,86.599,86.561,11.55254675]
[1770571549380,0.49999999,86.598,86.561,11.55254675]
[1770571549905,7.23057149,86.611,86.59,14.28244732]
[1770571550079,7.23057149,86.611,86.6,14.28244732]
[1770571550280,7.23057149,86.611,86.59,14.28244732]
[1770571550511,0.49999999,86.638,86.6,14.28244732]
[1770571551384,0.49999999,86.636,86.6,25.82977562]
[1770571552479,0.49999999,86.644,86.61,14.28244732]
[1770571553200,0.49999999,86.644,86.6,40.41568857]
[1770571553201,0.49999999,86.653,86.63,14.28244732]
[1770571553390,0.49999999,86.653,86.62,14.28244732]
[1770571556007,0.49999999,86.653,86.621,11.54454462]
[1770571557498,0.49999999,86.653,86.63,14.28244732]
[1770571558309,7.22672066,86.662,86.621,11.54454462]
[1770571558310,7.72672065,86.662,86.64,14.28244732]
[1770571558890,0.49999999,86.661,86.631,11.54321201]
[1770571559190,12.03921601,86.661,86.631,11.54321201]
[1770571559394,0.49999999,86.66,86.63,14.28244732]
[1770571559998,0.49999999,86.66,86.63,25.82568134]
[1770571560407,7.22672066,86.662,86.595,28.86996353]
[1770571560408,0.49999999,86.649,86.595,28.86996353]
[1770571560710,0.49999999,86.649,86.616,11.54508229]
[1770571561090,0.49999999,86.649,86.625,11.54394539]
[1770571562410,7.23214028,86.661,86.64,5.3293037]
[1770571565004,7.23214028,86.661,86.64,14.26432572]
[1770571565613,7.23214028,86.661,86.65,14.26432572]
[1770571566900,0.49999999,86.675,86.651,11.54054771]
[1770571567100,11.53592494,86.686,86.651,11.54054771]
[1770571567101,0.49999999,86.683,86.66,14.26083029]
[1770571568699,0.49999999,86.693,86.67,14.26083029]
[1770571569210,12.03497944,86.693,86.66,14.26083029]
[1770571569429,0.49999999,86.692,86.663,11.53892308]
[1770571570218,0.49999999,86.692,86.667,11.53837216]
[1770571570415,0.49999999,86.692,86.671,11.53788464]
[1770571570716,0.49999999,86.705,86.671,11.53788464]
[1770571571204,0.49999999,86.703,86.661,40.38709714]
[1770571572428,0.49999999,86.703,86.661,11.53921602]
[1770571573504,0.49999999,86.703,86.67,14.26083029]
[1770571575519,0.49999999,86.703,86.68,25.79739485]
[1770571575897,0.49999999,86.711,86.68,25.79739485]
[1770571577015,0.49999999,86.707,86.68,25.79739485]
[1770571577225,7.71375912,86.706,86.68,25.79739485]
[1770571578419,7.71375912,86.706,86.69,14.26083029]
[1770571578820,7.71375912,86.706,86.68,14.26083029]
[1770571579520,0.49999999,86.699,86.66,14.26083029]
[1770571580008,0.49999999,86.699,86.68,14.26083029]
[1770571580725,7.21375913,86.706,86.681,11.53655356]
[1770571581226,0.49999999,86.705,86.681,11.53655356]
[1770571581824,0.49999999,86.704,86.68,14.26083029]
[1770571582033,0.49999999,86.704,86.673,11.53752296]
[1770571582711,0.49999999,86.704,86.68,14.26083029]
[1770571583421,7.21375913,86.706,86.69,14.26083029]
[1770571583729,0.49999999,86.705,86.681,11.53655356]
[1770571583930,0.49999999,86.705,86.673,11.53753591]
[1770571583931,0.49999999,86.704,86.673,11.53753591]
[1770571584834,11.53362628,86.703,86.673,11.53753591]
[1770571585033,0.49999999,86.702,86.67,5.32168931]
[1770571585327,0.49999999,86.702,86.668,11.5381571]
[1770571585328,0.49999999,86.699,86.663,11.53883374]
[1770571587119,0.49999999,86.697,86.66,5.32168931]
[1770571587426,0.49999999,86.669,86.63,5.32168931]
[1770571588632,0.49999999,86.667,86.631,11.54321201]
[1770571588840,0.49999999,86.673,86.65,5.32168931]
[1770571589213,0.49999999,86.673,86.631,11.54321201]
[1770571589214,0.49999999,86.672,86.631,40.40124204]
[1770571589414,0.49999999,86.672,86.65,5.32168931]
[1770571590227,0.49999999,86.694,86.66,5.32168931]
[1770571590740,0.49999999,86.692,86.66,5.32168931]
[1770571591127,0.49999999,86.692,86.661,11.53921602]
[1770571594134,0.49999999,86.689,86.634,28.85696336]
[1770571594340,0.49999999,86.689,86.647,11.54102616]
[1770571594744,0.49999999,86.689,86.651,11.54046817]
[1770571596642,0.49999999,86.687,86.65,5.32168931]
[1770571597231,0.49999999,86.679,86.64,5.32168931]
[1770571597633,0.49999999,86.679,86.65,5.32168931]
[1770571597832,0.49999999,86.687,86.66,5.32168931]
[1770571598741,0.49999999,86.685,86.66,5.32168931]
[1770571600926,0.49999999,86.683,86.66,5.32168931]
[1770571601838,0.49999999,86.683,86.654,11.5400889]
[1770571602424,7.22127805,86.695,86.654,11.5400889]
[1770571602425,11.53642047,86.682,86.654,11.5400889]
[1770571602638,0.49999999,86.681,86.654,11.5400889]
[1770571603443,0.49999999,86.681,86.65,5.32168931]
[1770571603754,0.49999999,86.681,86.651,11.54054771]
[1770571605631,0.49999999,86.679,86.651,11.54054771]
[1770571606744,0.49999999,86.679,86.65,5.32168931]
[1770571607051,0.49999999,86.679,86.65,16.86230272]
[1770571611155,0.49999999,86.677,86.65,11.54061341]
[1770571611657,0.49999999,86.677,86.642,11.54163732]
[1770571613055,0.49999999,86.675,86.642,11.54163732]
[1770571613932,0.49999999,86.673,86.642,11.54163732]
[1770571614531,0.49999999,86.669,86.63,5.32168931]
[1770571614736,0.49999999,86.669,86.631,11.54318467]
[1770571615661,0.49999999,86.669,86.65,5.32168931]
[1770571615841,0.49999999,86.669,86.641,11.54187971]
[1770571616358,0.49999999,86.669,86.65,5.32168931]
[1770571616560,11.53680515,86.68,86.66,5.32168931]
[1770571616856,11.53680515,86.68,86.65,5.32168931]
[1770571617056,12.03680514,86.68,86.65,5.32168931]
[1770571617280,0.49999999,86.679,86.65,5.32168931]
[1770571618650,0.49999999,86.677,86.65,5.04168651]
[1770571619380,12.03637714,86.683,86.651,11.54054771]
[1770571619668,0.49999999,86.682,86.66,5.32168931]
[1770571619865,0.49999999,86.682,86.651,11.54054771]
[1770571620244,0.49999999,86.669,86.63,5.32168931]
[1770571620448,0.49999999,86.669,86.62,5.32168931]
[1770571620765,0.49999999,86.649,86.61,5.32168931]
[1770571621342,0.49999999,86.649,86.608,28.86548993]
[1770571621559,0.49999999,86.658,86.63,5.32168931]
[1770571621767,0.49999999,86.665,86.64,5.32168931]
[1770571622059,0.49999999,86.665,86.63,5.32168931]
[1770571622740,0.49999999,86.663,86.62,5.32168931]
[1770571622943,0.49999999,86.659,86.622,11.54435228]
[1770571623362,0.49999999,86.659,86.63,5.32168931]
[1770571623749,0.49999999,86.659,86.627,11.54371762]
[1770571623954,0.49999999,86.659,86.622,11.54431137]
[1770571625760,0.49999999,86.657,86.622,11.54431137]
[1770571626149,0.49999999,86.657,86.63,5.32168931]
[1770571627271,0.49999999,86.655,86.62,5.32168931]
[1770571628058,0.49999999,86.655,86.63,5.32168931]
[1770571628969,0.49999999,86.655,86.63,5.32672844]
[1770571629871,0.49999999,86.655,86.621,11.54454462]
[1770571630072,0.49999999,86.653,86.621,11.54454462]
[1770571630761,0.49999999,86.653,86.64,5.32672844]
[1770571630965,0.49999999,86.653,86.63,5.32672844]
[1770571631462,0.49999999,86.653,86.621,40.40590618]
[1770571632767,0.49999999,86.663,86.63,5.32672844]
[1770571633472,0.49999999,86.663,86.64,5.32672844]
[1770571633952,11.53908287,86.662,86.64,5.32672844]
[1770571634357,11.53908287,86.662,86.632,11.54302984]
[1770571634358,0.49999999,86.661,86.632,11.54302984]
[1770571634857,0.49999999,86.661,86.622,11.54439168]
[1770571635263,0.49999999,86.661,86.63,5.32672844]
[1770571636375,0.49999999,86.659,86.633,11.54294276]
[1770571637257,0.49999999,86.659,86.63,5.32672844]
[1770571638371,0.49999999,86.659,86.631,11.54321201]
[1770571648776,0.49999999,86.657,86.626,11.54378433]
[1770571648976,0.49999999,86.657,86.63,11.54334056]
[1770571649474,0.49999999,86.657,86.63,16.870069]
[1770571649675,7.2121443,86.665,86.64,5.32672844]
[1770571649972,0.49999999,86.664,86.64,5.32672844]
[1770571650173,0.49999999,86.664,86.63,45.72843215]
[1770571654679,11.53894972,86.663,86.63,16.870069]
[1770571654982,0.49999999,86.662,86.631,11.54321201]
[1770571657181,7.24613481,86.672,86.65,5.32672844]
[1770571657685,7.24613481,86.672,86.631,11.54321201]
[1770571657686,7.24613481,86.672,86.66,5.32672844]
[1770571658079,7.24613481,86.672,86.65,5.32672844]
[1770571659076,7.24613481,86.672,86.65,16.86728689]
[1770571661206,0.49999999,86.671,86.65,11.54055845]
[1770571661696,0.49999999,86.671,86.65,16.86728689]
[1770571662904,7.24613481,86.672,86.65,16.86728689]
[1770571674509,0.49999999,86.696,86.66,5.32672844]
[1770571674697,0.49999999,86.696,86.65,40.3922607]
[1770571674698,0.49999999,86.696,86.67,5.32672844]
[1770571675291,0.49999999,86.696,86.66,5.32672844]
[1770571675692,0.49999999,86.694,86.66,16.86605975]
[1770571678818,0.49999999,86.692,86.66,16.86605975]
[1770571680714,0.49999999,86.69,86.66,16.86605975]
[1770571681515,0.49999999,86.69,86.67,5.32672844]
[1770571681694,0.49999999,86.696,86.67,5.32672844]
[1770571681900,0.49999999,86.696,86.68,5.32672844]
[1770571686813,0.49999999,86.696,86.67,5.32672844]
[1770571688906,0.49999999,86.696,86.671,11.53788464]
[1770571689401,7.31907054,86.706,86.69,5.32127159]
[1770571689402,0.49999999,86.703,86.69,5.32127159]
[1770571690006,7.31907054,86.706,86.69,5.32127159]
[1770571690210,7.31907054,86.706,86.7,5.32127159]
[1770571690901,0.2,86.72,86.7,5.32127159]
[1770571691199,0.49999999,86.729,86.71,5.32127159]
[1770571692504,0.49999999,86.729,86.701,11.53389234]
[1770571693607,0.49999999,86.728,86.694,11.5347926]
[1770571694308,0.49999999,86.728,86.7,5.32127159]
[1770571694626,0.49999999,86.719,86.68,5.32127159]
[1770571694923,5.32127159,86.71,86.673,11.53749924]
[1770571695121,0.49999999,86.709,86.673,11.53749924]
[1770571697522,0.49999999,86.713,86.69,5.32127159]
[1770571697719,0.49999999,86.725,86.7,5.32127159]
[1770571699229,0.49999999,86.723,86.7,5.32127159]
[1770571699627,0.49999999,86.729,86.71,5.32127159]
[1770571701009,0.49999999,86.729,86.701,40.36862319]
[1770571701210,0.49999999,86.729,86.71,5.32127159]
[1770571702435,0.49999999,86.729,86.711,11.53256218]
[1770571705831,0.2,86.73,86.711,11.53256218]
[1770571706035,0.2,86.73,86.72,5.32127159]
[1770571706436,0.49999999,86.74,86.72,5.32127159]
[1770571708720,7.36530772,86.749,86.73,5.32127159]
[1770571709547,7.36530772,86.749,86.74,5.32127159]
[1770571711224,0.69999999,86.76,86.741,11.52857356]
[1770571711641,0.69999999,86.76,86.75,5.32127159]
[1770571711642,0.2,86.76,86.75,5.32127159]
[1770571711826,0.49999999,86.773,86.75,5.32127159]
[1770571712025,0.49999999,86.773,86.76,5.32127159]
[1770571712239,0.49999999,86.773,86.75,5.32127159]
[1770571713331,0.49999999,86.773,86.751,11.52724464]
[1770571713536,0.49999999,86.773,86.76,5.32127159]
[1770571714052,0.69999999,86.77,86.76,5.32127159]
[1770571714880,0.2,86.78,86.761,11.52591602]
[1770571715153,0.49999999,86.779,86.75,5.32127159]
[1770571716042,0.49999999,86.778,86.75,5.32127159]
[1770571718168,0.49999999,86.769,86.73,5.32127159]
[1770571718835,0.49999999,86.769,86.74,5.32127159]
[1770571719040,0.49999999,86.769,86.73,5.32127159]
[1770571719351,40.33326802,86.777,86.68,5.32127159]
[1770571719352,0.49999999,86.759,86.71,5.32127159]
[1770571720361,0.49999999,86.757,86.711,11.53256218]
[1770571720554,0.49999999,86.749,86.7,5.32127159]
[1770571720746,0.49999999,86.739,86.7,5.32127159]
[1770571721869,5.32127159,86.73,86.679,28.84179167]
[1770571722159,0.49999999,86.729,86.689,11.53539553]
[1770571722408,0.49999999,86.727,86.681,11.53655356]
[1770571722742,0.49999999,86.727,86.69,5.32127159]
[1770571723045,0.49999999,86.733,86.7,5.32127159]
[1770571724164,0.49999999,86.733,86.681,40.37793748]
[1770571724466,0.49999999,86.733,86.701,11.53389234]
[1770571725164,0.49999999,86.731,86.701,11.53389234]
[1770571728264,11.53003574,86.73,86.701,11.53389234]
[1770571728454,0.49999999,86.729,86.701,11.53389234]
[1770571729050,0.49999999,86.735,86.71,5.32127159]
[1770571729371,0.49999999,86.742,86.71,5.32127159]
[1770571729570,0.49999999,86.742,86.72,5.32127159]
[1770571730072,0.49999999,86.748,86.72,5.32127159]
[1770571732569,0.49999999,86.748,86.721,11.53123234]
[1770571734251,0.49999999,86.748,86.711,11.53256218]
[1770571735973,0.49999999,86.746,86.711,11.53256218]
[1770571736147,0.49999999,86.739,86.706,11.53309635]
[1770571736851,0.49999999,86.737,86.69,5.32127159]
[1770571737155,0.49999999,86.737,86.699,11.53410352]
[1770571738968,0.49999999,86.735,86.691,28.838057]
[1770571739184,0.49999999,86.735,86.7,5.32127159]
[1770571741358,11.52867998,86.741,86.71,5.32127159]
[1770571741676,0.49999999,86.749,86.72,5.32127159]
[1770571743880,0.49999999,86.755,86.73,5.32127159]
[1770571745078,0.49999999,86.755,86.721,11.53123234]
[1770571745985,0.49999999,86.753,86.721,11.53123234]
[1770571747084,0.49999999,86.761,86.73,5.32127159]
[1770571747268,0.49999999,86.768,86.74,5.32127159]
[1770571748388,0.49999999,86.768,86.741,11.52857356]
[1770571749872,0.49999999,86.768,86.75,5.32127159]
[1770571750067,0.69999999,86.78,86.76,5.32127159]
[1770571750388,0.49999999,86.779,86.76,5.32127159]
[1770571750570,0.49999999,86.779,86.761,11.52591602]
[1770571750978,0.2,86.78,86.761,11.52591602]
[1770571751370,0.49999999,86.779,86.761,11.52591602]
[1770571752479,0.2,86.78,86.761,11.52591602]
[1770571752994,0.49999999,86.779,86.756,11.52655498]
[1770571753293,0.49999999,86.779,86.76,11.52594874]
[1770571753488,0.49999999,86.779,86.75,5.31096147]
[1770571753489,0.49999999,86.778,86.75,16.83822893]
[1770571754584,0.2,86.78,86.76,5.31096147]
[1770571754783,0.2,86.78,86.77,5.31096147]
[1770571755105,115.47342302,86.873,86.77,5.31096147]
[1770571755106,0.49999999,86.797,86.77,5.31096147]
[1770571755389,0.49999999,86.797,86.75,40.34571126]
[1770571755697,0.49999999,86.795,86.76,5.31096147]
[1770571756598,0.49999999,86.795,86.77,5.31096147]
[1770571757675,0.49999999,86.803,86.78,5.31096147]
[1770571758677,0.49999999,86.803,86.781,11.52325969]
[1770571758883,0.49999999,86.801,86.771,11.5244808]
[1770571759999,0.49999999,86.799,86.76,16.83689623]
[1770571760199,0.49999999,86.779,86.74,5.31096147]
[1770571760399,0.49999999,86.779,86.744,11.5280733]
[1770571761000,0.49999999,86.777,86.744,11.5280733]
[1770571763607,0.49999999,86.775,86.744,11.5280733]
[1770571765407,11.52301173,86.783,86.76,5.31096147]
[1770571765594,0.49999999,86.788,86.76,5.31096147]
[1770571767424,0.49999999,86.788,86.761,11.52591602]
[1770571771303,28.79882204,86.81,86.78,5.31096147]
[1770571771304,0.49999999,86.803,86.78,5.31096147]
[1770571771692,0.49999999,86.803,86.77,5.31096147]
[1770571771990,0.49999999,86.801,86.772,11.5244481]
[1770571772205,0.49999999,86.801,86.77,5.31096147]
[1770571772386,0.49999999,86.799,86.762,11.52572635]
[1770571772808,0.49999999,86.789,86.757,11.5263458]
[1770571773415,0.49999999,86.789,86.761,11.52584836]
[1770571775125,0.49999999,86.787,86.756,11.52654697]
[1770571775412,0.49999999,86.787,86.76,11.52597754]
[1770571776310,0.49999999,86.787,86.751,11.52724464]
[1770571776509,0.49999999,86.787,86.76,5.31096147]
[1770571778414,0.49999999,86.787,86.761,11.52591602]
[1770571780526,0.49999999,86.787,86.75,5.31096147]
[1770571782096,0.49999999,86.787,86.76,5.31096147]
[1770571782717,0.49999999,86.787,86.761,11.52591602]
[1770571789232,0.49999999,86.803,86.78,5.31096147]
[1770571792629,0.49999999,86.803,86.78,3.75452971]
[1770571792833,0.49999999,86.799,86.76,16.83696895]
[1770571793028,0.49999999,86.799,86.77,5.31096147]
[1770571793407,0.49999999,86.799,86.772,11.52443862]
[1770571793722,0.49999999,86.799,86.78,5.31096147]
[1770571794429,0.49999999,86.799,86.781,11.52325969]
[1770571795335,7.25441023,86.805,86.781,11.52325969]
[1770571796020,7.25441023,86.805,86.79,5.31096147]
[1770571796226,7.25441023,86.805,86.746,57.63892219]
[1770571796227,0.49999999,86.803,86.776,11.52383621]
[1770571796421,0.49999999,86.803,86.724,102.6]
[1770571796624,0.49999999,86.789,86.75,16.83823865]
[1770571796832,0.49999999,86.789,86.703,5.36086188]
[1770571796833,12.02618171,86.759,86.709,11.53282819]
[1770571797031,12.02618171,86.759,86.671,102.6]
[1770571797032,0.49999999,86.758,86.656,6.00756946]
[1770571797219,0.49999999,86.729,86.692,11.53505399]
[1770571797421,0.49999999,86.729,86.69,5.31096147]
[1770571797619,0.49999999,86.729,86.64,5.31096147]
[1770571797620,0.49999999,86.729,86.681,0.47220726]
[1770571797848,0.47388745,86.709,86.673,0.47220726]
[1770571798129,0.47388745,86.699,86.67,0.57220726]
[1770571798336,0.47388745,86.707,86.671,0.47220726]
[1770571798631,0.47388745,86.715,86.681,0.47220726]
[1770571799037,0.47388745,86.713,86.671,0.47220726]
[1770571799237,0.47388745,86.709,86.673,0.47220726]
[1770571799444,0.47388745,86.709,86.674,0.47220726]
[1770571799617,0.47388745,86.716,86.682,0.47220726]
[1770571800013,7.24403422,86.724,86.682,0.47220726]
[1770571800216,7.24403422,86.724,86.701,0.47220726]
[1770571800421,0.47388745,86.753,86.73,5.31096147]
[1770571800731,0.49999999,86.766,86.73,5.31096147]
[1770571800928,0.49999999,86.766,86.73,14.2334091]
[1770571801238,0.49999999,86.784,86.76,14.2334091]
[1770571801652,7.25451147,86.796,86.77,14.2334091]
[1770571801829,7.25451147,86.796,86.78,14.2334091]
[1770571802021,7.25451147,86.796,86.79,14.2334091]
[1770571802447,7.25451147,86.796,86.78,14.2334091]
[1770571804022,7.25451147,86.796,86.781,11.52325969]
[1770571805145,7.25451147,86.796,86.79,14.2334091]
[1770571805347,0.49999999,86.813,86.781,11.52325969]
[1770571805646,0.2,86.82,86.765,11.52528728]
[1770571805647,0.49999999,86.807,86.765,11.52528728]
[1770571805840,0.49999999,86.813,86.78,14.2334091]
[1770571807139,0.49999999,86.819,86.79,14.2334091]
[1770571807730,0.49999999,86.819,86.78,14.2334091]
[1770571807927,0.49999999,86.817,86.78,14.2334091]
[1770571808139,0.49999999,86.817,86.79,14.2334091]
[1770571809545,0.49999999,86.817,86.765,11.52528728]
[1770571809838,0.49999999,86.807,86.77,14.2334091]
[1770571811252,0.49999999,86.807,86.771,11.5245877]
[1770571812948,0.49999999,86.807,86.77,14.22083009]
[1770571814855,0.49999999,86.805,86.77,14.22083009]
[1770571815954,0.49999999,86.805,86.771,11.5245877]
[1770571816260,0.49999999,86.805,86.78,14.22083009]
[1770571816443,0.49999999,86.817,86.79,14.22083009]
[1770571817147,0.2,86.82,86.8,14.22083009]
[1770571818155,0.49999999,86.819,86.79,14.22083009]
[1770571819354,0.49999999,86.818,86.78,14.22083009]
[1770571819730,0.49999999,86.818,86.771,28.81146926]
[1770571819731,0.49999999,86.818,86.77,14.22083009]
[1770571819935,0.49999999,86.809,86.77,14.22083009]
[1770571820143,0.49999999,86.807,86.771,11.5245877]
[1770571820540,0.49999999,86.807,86.766,11.52519774]
[1770571821356,5.3100245,86.8,86.766,11.52519774]
[1770571821558,0.49999999,86.799,86.766,11.52519774]
[1770571821759,0.49999999,86.789,86.725,28.82647153]
[1770571821948,0.49999999,86.779,86.742,11.52839446]
[1770571822261,0.49999999,86.777,86.742,11.52839446]
[1770571823157,0.49999999,86.777,86.75,14.23134496]
[1770571823645,0.49999999,86.777,86.76,14.23134496]
[1770571823842,0.49999999,86.787,86.76,14.23134496]
[1770571824159,7.24394328,86.796,86.781,11.52325969]
[1770571824938,7.24394328,86.796,86.79,14.23134496]
[1770571825644,11.71816998,86.82,86.79,14.23134496]
[1770571826063,0.2,86.82,86.79,14.23134496]
[1770571826258,0.2,86.82,86.791,11.52193199]
[1770571826451,0.49999999,86.818,86.79,14.23134496]
[1770571827050,0.49999999,86.818,86.777,11.52377346]
[1770571827251,0.49999999,86.818,86.78,14.23134496]
[1770571827550,0.49999999,86.818,86.781,11.52321649]
[1770571827952,0.49999999,86.818,86.785,11.52263706]
[1770571828462,0.49999999,86.818,86.78,14.23134496]
[1770571828645,0.49999999,86.818,86.79,14.23134496]
[1770571829454,0.49999999,86.816,86.79,14.23134496]
[1770571829765,0.49999999,86.816,86.781,11.52325969]
[1770571829963,0.49999999,86.809,86.706,1.15332272]
[1770571830168,0.49999999,86.809,86.7,14.23134496]
[1770571830169,0.49999999,86.799,86.75,14.23134496]
[1770571830349,0.49999999,86.799,86.76,14.23134496]
[1770571830663,0.49999999,86.797,86.761,11.52580242]
[1770571832370,0.49999999,86.831,86.79,14.23134496]
[1770571832547,0.49999999,86.821,86.8,14.23134496]
[1770571832743,0.49999999,86.817,86.786,11.52256103]
[1770571833049,0.49999999,86.817,86.79,14.23134496]
[1770571833256,0.49999999,86.817,86.8,14.23134496]
[1770571833455,0.49999999,86.817,86.79,14.23134496]
[1770571834346,0.49999999,86.817,86.787,11.52242749]
[1770571834546,0.49999999,86.817,86.79,14.23134496]
[1770571835048,0.49999999,86.817,86.78,14.23134496]
[1770571835563,0.49999999,86.817,86.79,14.23134496]
[1770571837761,0.49999999,86.817,86.791,11.52193199]
[1770571837953,0.49999999,86.815,86.79,14.23134496]
[1770571838267,0.49999999,86.815,86.78,25.75470069]
[1770571839562,0.2,86.82,86.79,14.23134496]
[1770571839949,0.49999999,86.818,86.79,14.23134496]
[1770571840466,0.49999999,86.818,86.8,14.23134496]
[1770571840871,14.23134496,86.84,86.8,14.23134496]
[1770571841080,0.49999999,86.852,86.82,14.23134496]
[1770571841751,0.49999999,86.849,86.812,11.51905924]
[1770571842050,0.49999999,86.849,86.816,11.51851497]
[1770571842262,0.49999999,86.849,86.82,25.74936691]
[1770571843073,0.49999999,86.849,86.815,11.51872205]
[1770571843966,0.49999999,86.847,86.815,11.51872205]
[1770571845172,0.49999999,86.847,86.82,14.23134496]
[1770571845759,0.49999999,86.847,86.81,14.23134496]
[1770571846468,14.43134496,86.86,86.82,14.23134496]
[1770571846671,0.2,86.86,86.84,14.23134496]
[1770571846862,0.49999999,86.859,86.82,14.23134496]
[1770571847061,0.49999999,86.859,86.811,40.31747128]
[1770571847062,0.49999999,86.859,86.83,14.23134496]
[1770571847268,0.49999999,86.859,86.82,14.23134496]
[1770571848577,0.49999999,86.857,86.821,11.51795072]
[1770571848875,14.23134496,86.85,86.81,14.23134496]
[1770571849081,0.49999999,86.849,86.818,11.51826358]
[1770571849261,0.49999999,86.849,86.82,14.23134496]
[1770571849868,0.49999999,86.849,86.83,14.23134496]
[1770571850066,0.49999999,86.849,86.821,11.51795072]
[1770571850775,0.49999999,86.849,86.83,14.23134496]
[1770571851160,0.49999999,86.859,86.83,14.23134496]
[1770571851474,11.51291173,86.859,86.83,14.23134496]